bitfinex-derivatives/quotes_SOLF0:USTF0_20250923
["timestamp","ask_amount","ask_price","bid_price","bid_amount"]
[1758638207303,7.22,217.96,217.85,64.2189]
[1758638207501,7.22,217.96,217.87,11.5879]
[1758638207701,7.22,217.96,217.87,7.46]
[1758638208106,7.22,217.96,217.87,11.588]
[1758638208494,7.22,217.96,217.87,7.46]
[1758638208699,4.1256,218.0,217.87,7.46]
[1758638208895,127.214174,217.99,217.88,64.2113]
[1758638209095,7.22,218.02,217.91,71.6625]
[1758638209705,3.19594648,218.01,217.91,7.46]
[1758638209903,7.22,218.02,217.91,7.46]
[1758638210401,123.84,218.01,217.91,7.46]
[1758638210601,7.22,218.02,217.92,64.1987]
[1758638210812,123.78,218.03,217.92,4.1269]
[1758638211004,3.20013966,218.02,217.92,4.1269]
[1758638211307,3.20013966,218.02,217.94,4.1267]
[1758638211308,3.20013966,218.01,217.94,4.1267]
[1758638212310,3.20013966,218.01,217.93,4.1269]
[1758638212509,10.42013966,218.01,217.86,7.46]
[1758638212707,3.20013966,218.0,217.86,7.46]
[1758638213007,7.04,217.98,217.86,7.46]
[1758638213308,126.78013966,217.97,217.86,7.46]
[1758638213510,3.20013966,217.96,217.87,4.1279]
[1758638213710,4.1267,217.94,217.86,7.46]
[1758638213912,133.74013966,217.93,217.83,4.1288]
[1758638214113,3.20013966,217.92,217.81,7.32]
[1758638214607,3.20013966,217.92,217.85,7.32]
[1758638214807,123.46,217.96,217.86,64.2168]
[1758638215011,7.04,217.94,217.82,4.1288]
[1758638215313,4.1273,217.91,217.82,4.1288]
[1758638215616,3.21715661,217.9,217.85,4.1282]
[1758638215825,7.04,217.94,217.85,4.1282]
[1758638216021,3.21697649,217.93,217.86,4.128]
[1758638216221,3.21697649,217.92,217.83,64.2259]
[1758638216416,3.21697649,217.91,217.84,64.2233]
[1758638216621,7.04,217.94,217.84,64.2233]
[1758638216816,3.20134327,217.93,217.88,4.1277]
[1758638217018,3.20134327,217.92,217.84,7.32]
[1758638217324,3.20134327,217.91,217.87,4.1279]
[1758638217623,4.1262,217.97,217.84,7.32]
[1758638217817,126.96195712,217.96,217.84,7.32]
[1758638218012,7.04,217.94,217.79,7.32]
[1758638218217,3.20195712,217.93,217.79,7.32]
[1758638218422,3.20195712,217.92,217.79,7.32]
[1758638218621,4.1277,217.89,217.79,7.32]
[1758638218823,3.20195712,217.88,217.79,7.32]
[1758638219023,3.20195712,217.87,217.82,4.1288]
[1758638219222,3.2029507,217.86,217.82,4.1288]
[1758638219425,105.74,217.9,217.82,4.1288]
[1758638219625,3.20303587,217.89,217.82,4.1288]
[1758638219920,3.20303587,217.88,217.79,71.5575]
[1758638220127,3.20303587,217.87,217.79,7.32]
[1758638220319,3.20303587,217.86,217.74,7.32]
[1758638220625,7.04,217.87,217.75,4.1303]
[1758638220626,3.20303587,217.85,217.75,4.1303]
[1758638220827,3.20303587,217.84,217.75,4.1303]
[1758638221021,3.20303587,217.83,217.75,4.1303]
[1758638221224,3.20303587,217.82,217.74,7.32]
[1758638221524,3.20303587,217.82,217.71,72.92483944]
[1758638221525,7.04,217.87,217.79,64.2376]
[1758638221723,7.04,217.93,217.84,4.1284]
[1758638221920,3.20194274,217.92,217.84,4.1284]
[1758638222119,3.20194274,217.91,217.84,4.1284]
[1758638222326,3.20194274,217.9,217.82,4.129]
[1758638222530,3.20194274,217.89,217.82,71.5483]
[1758638222723,7.04,217.93,217.82,7.32]
[1758638222916,3.19687789,217.92,217.87,7.32]
[1758638223216,116.18,217.99,217.87,7.32]
[1758638223417,3.1975586,217.98,217.87,7.32]
[1758638223625,10.2375586,217.97,217.88,64.2107]
[1758638223830,3.1975586,217.96,217.9,7.32]
[1758638224028,470.3,218.01,217.92,4.1269]
[1758638224229,3.19752473,218.0,217.9,7.32]
[1758638224524,3.19752473,217.99,217.9,7.32]
[1758638224724,3.19752473,217.98,217.9,7.32]
[1758638224923,474.4254,218.01,217.9,7.32]
[1758638224924,3.19752473,217.97,217.9,7.32]
[1758638225119,123.26,217.99,217.91,4.1272]
[1758638225325,3.19629254,217.98,217.91,4.1272]
[1758638225522,3.19629254,217.97,217.9,7.32]
[1758638225830,3.19629254,217.96,217.9,7.32]
[1758638226023,123.26,217.99,217.9,7.32]
[1758638226226,3.19605684,217.98,217.9,7.32]
[1758638226527,3.19605684,217.97,217.9,7.32]
[1758638226727,346.92,218.01,217.9,7.32]
[1758638226923,3.19627197,218.0,217.9,7.32]
[1758638227224,346.92,218.01,217.93,64.1959]
[1758638227417,12.06591842,218.08,217.96,64.1873]
[1758638227418,7.04,218.08,217.96,64.1873]
[1758638227620,3.19736292,218.07,218.01,7.32]
[1758638227822,7.04,218.15,218.01,7.32]
[1758638228027,3.19747737,218.14,218.01,7.32]
[1758638228329,3.19747737,218.13,218.01,7.32]
[1758638228532,3.19747737,218.12,218.01,7.32]
[1758638228730,3.19747737,218.11,218.01,11.4452]
[1758638229028,3.19747737,218.1,218.01,11.4452]
[1758638229225,4.1233,218.12,218.01,11.4452]
[1758638229426,3.19081143,218.11,218.01,11.4452]
[1758638229627,122.94,218.13,218.01,11.4452]
[1758638229824,3.18996976,218.12,218.01,7.32]
[1758638230020,3.18996976,218.11,218.01,7.32]
[1758638230227,122.94,218.13,218.01,7.32]
[1758638230420,7.04,218.1,217.94,7.32]
[1758638230622,3.18840616,218.09,217.95,62.0]
[1758638230826,7.04,218.1,217.95,62.0]
[1758638231131,87.02669391,218.09,217.96,7.32]
[1758638231332,83.84,218.09,217.96,7.32]
[1758638231527,7.67,218.05,217.91,7.67]
[1758638231722,3.18650736,218.04,217.91,7.67]
[1758638231927,7.67,218.05,217.91,7.67]
[1758638232324,3.18645056,218.04,217.91,7.67]
[1758638232530,7.67,218.05,217.91,7.67]
[1758638232730,4.1251,218.03,217.91,7.67]
[1758638233034,121.09,218.05,217.91,71.8721]
[1758638233236,121.09,218.05,217.91,7.67]
[1758638233537,64.1705,218.02,217.91,7.67]
[1758638233724,14.98208312,218.01,217.91,7.67]
[1758638233929,3.18658312,218.0,217.91,7.67]
[1758638234127,122.76,218.03,217.91,7.67]
[1758638234432,122.76,218.05,217.92,64.1991]
[1758638234625,7.67,218.07,217.97,4.1261]
[1758638234834,3.18793164,218.06,217.97,4.1261]
[1758638235034,7.67,218.07,217.97,4.1261]
[1758638235231,3.18856826,218.06,217.97,4.1261]
[1758638235425,130.39,218.07,217.97,4.1261]
[1758638235624,7.67,218.07,217.97,4.1261]
[1758638235837,3.19002776,218.06,217.96,7.67]
[1758638236037,3.19002776,218.05,217.96,7.67]
[1758638236232,3.19002776,218.04,217.96,7.67]
[1758638236433,7.67,218.07,217.96,7.67]
[1758638236634,3.19031301,218.06,217.96,7.67]
[1758638236929,3.19031301,218.05,217.96,7.67]
[1758638237128,7.67,218.07,217.96,7.67]
[1758638237838,7.67,218.07,217.98,4.1259]
[1758638238031,11.7943,218.07,217.96,7.67]
[1758638238429,3.19203844,218.06,217.96,7.67]
[1758638238628,4.1246,218.05,217.96,7.67]
[1758638238836,64.1712,218.02,217.89,7.67]
[1758638239033,126.09159611,218.01,217.89,7.67]
[1758638239235,3.19159611,218.0,217.89,7.67]
[1758638239435,122.9,218.01,217.89,7.67]
[1758638239640,7.67,217.99,217.83,7.67]
[1758638239830,3.1895741,217.98,217.83,7.67]
[1758638240029,3.1892769,217.97,217.83,7.67]
[1758638240337,7.67,217.99,217.85,4.1283]
[1758638240535,3.18956971,217.98,217.83,7.67]
[1758638240744,7.67,217.99,217.84,64.2231]
[1758638240941,3.18956971,217.98,217.86,4.1281]
[1758638241144,3.18956971,217.98,217.83,7.67]
[1758638241145,3.18956971,217.97,217.83,7.67]
[1758638241339,3.18956971,217.96,217.83,7.67]
[1758638241641,12.69591842,218.04,217.91,71.8725]
[1758638241843,3.19011733,218.03,217.93,64.1956]
[1758638242039,7.67,218.1,217.99,4.1258]
[1758638242339,125.99011136,218.09,217.99,4.1258]
[1758638242540,3.19011136,218.08,217.99,4.1258]
[1758638242736,3.19011136,218.07,217.99,4.1258]
[1758638242942,122.8,218.08,217.99,4.1258]
[1758638243138,3.1894926,218.07,217.99,4.1258]
[1758638243341,4.1239,218.09,217.99,4.1258]
[1758638243537,3.18806281,218.08,217.95,64.1901]
[1758638243739,7.57,218.15,218.02,64.17]
[1758638243942,3.18722468,218.14,218.05,64.1615]
[1758638244141,7.57,218.15,218.04,11.7447]
[1758638244347,3.18549406,218.14,218.04,11.7447]
[1758638244546,7.57,218.15,218.04,11.7447]
[1758638244847,186.8045,218.18,217.98,7.62]
[1758638244848,7.57,218.12,217.98,7.62]
[1758638245047,3.18600061,218.11,217.98,7.62]
[1758638245249,125.76600061,218.1,217.98,7.62]
[1758638245454,3.18600061,218.09,217.98,7.62]
[1758638245647,3.18600061,218.08,217.98,7.62]
[1758638245848,122.56,218.09,217.98,7.62]
[1758638246050,3.18486179,218.08,217.98,7.62]
[1758638246350,126.6636,218.11,217.98,7.62]
[1758638246650,3.16713166,218.1,217.99,4.1257]
[1758638246953,3.16713166,218.09,217.98,7.62]
[1758638247146,126.6636,218.11,217.98,7.62]
[1758638247346,7.57,218.12,218.0,64.1759]
[1758638247549,7.57,218.12,217.98,71.8015]
[1758638247749,7.57,218.12,217.99,64.1786]
[1758638247949,7.57,218.12,218.01,64.1716]
[1758638248252,7.57,218.12,218.02,64.1702]
[1758638248549,7.29120158,218.11,217.98,7.62]
[1758638248745,3.16770158,218.1,217.98,7.62]
[1758638249053,3.16770158,218.1,217.98,71.801]
[1758638249254,4.1235,218.11,218.02,4.1252]
[1758638249855,129.79,218.12,218.03,4.1248]
[1758638250053,3.16725297,218.11,218.03,4.1248]
[1758638250253,129.77,218.12,218.03,4.1248]
[1758638250555,122.18,218.13,218.05,4.1246]
[1758638250949,4.1227,218.16,218.06,4.1243]
[1758638251150,125.28742331,218.15,218.06,4.1243]
[1758638251352,3.16742331,218.14,218.06,4.1243]
[1758638251556,122.12,218.15,218.06,4.1243]
[1758638251855,3.16720231,218.14,218.06,4.1243]
[1758638252053,7.57,218.17,218.1,4.1237]
[1758638252853,68.64485825,218.2,218.11,4.1233]
[1758638253059,3.16784814,218.19,218.11,4.1233]
[1758638253264,190.78485825,218.2,218.09,64.1496]
[1758638253552,3.16670428,218.19,218.1,64.1458]
[1758638253748,7.57,218.22,218.11,7.62]
[1758638253950,3.16744878,218.21,218.11,7.62]
[1758638254145,7.57,218.22,218.11,7.62]
[1758638254350,122.0,218.25,218.13,64.1367]
[1758638254657,3.1658778,218.24,218.13,64.1367]
[1758638254950,121.96,218.26,218.18,4.1221]
[1758638255156,3.165886,218.25,218.18,4.1221]
[1758638255351,468.64,218.27,218.16,7.62]
[1758638255548,3.16459659,218.26,218.16,7.62]
[1758638255753,3.16459659,218.25,218.16,7.62]
[1758638255954,346.72,218.27,218.16,7.62]
[1758638256254,346.72,218.27,218.18,64.1229]
[1758638256452,346.72,218.27,218.19,64.1201]
[1758638256653,121.8,218.32,218.18,7.62]
[1758638256852,3.16217906,218.31,218.21,4.1216]
[1758638257052,3.16217906,218.3,218.19,64.1203]
[1758638257254,121.76,218.32,218.19,63.7203]
[1758638257554,3.15954633,218.31,218.19,63.7203]
[1758638257754,3.15954633,218.3,218.2,64.1173]
[1758638257950,7.57,218.33,218.21,64.1145]
[1758638258155,3.15985872,218.32,218.21,64.1145]
[1758638258348,7.57,218.33,218.22,11.7413]
[1758638259557,11.6894,218.33,218.22,11.7413]
[1758638259750,7.57,218.33,218.22,7.62]
[1758638260355,7.57,218.39,218.25,64.1027]
[1758638260549,7.57,218.39,218.26,7.62]
[1758638260753,7.57,218.39,218.31,4.1196]
[1758638261061,7.57,218.39,218.26,7.62]
[1758638261659,11.6882,218.39,218.27,4.1203]
[1758638261964,11.6882,218.39,218.26,7.62]
[1758638262154,7.57,218.39,218.3,4.1199]
[1758638262359,346.66,218.41,218.29,7.62]
[1758638262761,4.1181,218.4,218.29,11.7399]
[1758638262959,346.66,218.41,218.29,11.7399]
[1758638263457,346.66,218.41,218.29,7.62]
[1758638263763,121.18,218.43,218.31,64.0847]
[1758638264163,7.57,218.44,218.31,64.0847]
[1758638264363,128.73,218.44,218.31,64.0847]
[1758638264659,7.57,218.44,218.24,73.93325084]
[1758638264963,64.0544,218.42,218.25,7.62]
[1758638265264,4.1186,218.37,218.25,7.62]
[1758638265458,7.57,218.39,218.25,7.62]
[1758638265459,64.0648,218.38,218.25,7.62]
[1758638266162,4.1192,218.34,218.25,7.62]
[1758638266361,64.0703,218.37,218.25,7.62]
[1758638266658,4.1196,218.32,218.25,7.62]
[1758638266864,7.57,218.35,218.25,7.62]
[1758638267658,7.57,218.35,218.21,4.1215]
[1758638267966,4.1192,218.34,218.21,4.1215]
[1758638268166,4.1192,218.34,218.23,4.1212]
[1758638268359,4.1192,218.34,218.24,7.62]
[1758638268559,7.57,218.35,218.25,4.1208]
[1758638269364,11.689,218.35,218.25,4.1208]
[1758638270861,72.2793,218.45,218.24,71.7246]
[1758638271066,103.86,218.4,218.26,64.0998]
[1758638271670,4.1183,218.39,218.31,4.1197]
[1758638272368,128.15,218.41,218.33,4.1193]
[1758638272566,7.57,218.41,218.33,4.1193]
[1758638273570,120.5,218.44,218.35,4.1188]
[1758638273766,120.48,218.45,218.33,7.21]
[1758638273965,124.5971,218.45,218.36,4.1188]
[1758638274465,124.5971,218.45,218.33,7.21]
[1758638274466,128.09,218.46,218.33,71.288]
[1758638274665,184.4646,218.45,218.28,7.21]
[1758638274970,7.61,218.44,218.29,64.0907]
[1758638275261,11.7274,218.44,218.32,7.21]
[1758638275467,7.61,218.44,218.32,7.21]
[1758638276168,4.1177,218.42,218.34,4.119]
[1758638277864,7.61,218.44,218.36,4.1188]
[1758638278771,7.61,218.44,218.37,4.1184]
[1758638279267,11.7267,218.48,218.35,7.21]
[1758638279474,11.7267,218.48,218.4,4.1178]
[1758638279970,4.1169,218.47,218.4,4.1178]
[1758638280368,7.40946383,218.48,218.34,64.0762]
[1758638280563,7.53887763,218.63,218.44,7.21]
[1758638280564,7.04,218.63,218.44,7.21]
[1758638280763,7.04,218.63,218.45,64.0436]
[1758638280959,7.04,218.63,218.44,7.21]
[1758638281273,4.1145,218.59,218.44,7.21]
[1758638281770,4.1149,218.57,218.47,4.1166]
[1758638281973,64.0032,218.59,218.44,7.21]
[1758638282267,71.0321,218.63,218.44,7.21]
[1758638282464,7.61,218.6,218.44,7.21]
[1758638282971,7.61,218.6,218.47,4.1166]
[1758638283362,7.61,218.6,218.45,64.0437]
[1758638283871,7.61,218.6,218.44,7.21]
[1758638283872,11.7244,218.6,218.47,64.0381]
[1758638284072,11.7244,218.6,218.48,7.21]
[1758638284474,4.1147,218.58,218.48,7.21]
[1758638284775,7.61,218.58,218.42,71.2621]
[1758638285073,4.1151,218.56,218.47,4.1167]
[1758638285869,7.61,218.58,218.47,4.1167]
[1758638286875,7.61,218.58,218.46,7.21]
[1758638288071,64.0111,218.57,218.42,7.21]
[1758638288276,7.61,218.56,218.42,7.21]
[1758638288572,4.1161,218.5,218.42,11.3276]
[1758638289077,4.1158,218.52,218.42,11.3276]
[1758638289378,4.1158,218.52,218.44,4.1173]
[1758638290068,4.1158,218.52,218.42,7.21]
[1758638290274,4.1162,218.5,218.42,7.21]
[1758638291281,7.61,218.54,218.42,11.3275]
[1758638291774,7.61,218.54,218.42,7.21]
[1758638292573,7.61,218.54,218.46,4.1167]
[1758638292776,7.61,218.54,218.42,7.21]
[1758638293672,4.1161,218.5,218.43,4.1175]
[1758638293869,4.1161,218.5,218.42,7.21]
[1758638294071,4.1162,218.5,218.42,7.21]
[1758638294274,7.17,218.52,218.42,7.21]
[1758638294478,7.17,218.52,218.37,7.52]
[1758638294677,4.1162,218.5,218.4,4.1178]
[1758638294974,4.1162,218.5,218.4,3.7178]
[1758638295374,7.17,218.52,218.4,3.7178]
[1758638295375,7.17,218.52,218.4,7.52]
[1758638295580,7.17,218.58,218.43,7.52]
[1758638295977,7.17,218.58,218.44,4.1171]
[1758638296178,7.17,218.58,218.43,7.52]
[1758638296472,7.17,218.53,218.43,7.52]
[1758638296779,7.17,218.53,218.38,7.52]
[1758638297081,4.1163,218.5,218.38,7.52]
[1758638297684,4.1163,218.5,218.42,4.1176]
[1758638297982,11.2865,218.48,218.38,7.52]
[1758638298476,11.2865,218.48,218.38,11.6384]
[1758638298684,71.2061,218.48,218.35,7.52]
[1758638298879,7.17,218.45,218.3,7.52]
[1758638299174,64.0479,218.44,218.3,7.52]
[1758638299380,7.17,218.43,218.3,7.52]
[1758638300181,4.1181,218.4,218.3,7.52]
[1758638300782,4.1184,218.39,218.31,4.1195]
[1758638300978,7.17,218.4,218.3,7.52]
[1758638301885,4.1184,218.39,218.3,11.6397]
[1758638302478,4.1184,218.39,218.27,4.1203]
[1758638302678,4.1184,218.39,218.25,71.6222]
[1758638303586,4.1186,218.38,218.28,4.1201]
[1758638304287,7.17,218.4,218.3,4.1199]
[1758638304586,7.17,218.4,218.28,7.49]
[1758638305485,7.17,218.4,218.28,11.6101]
[1758638305680,7.17,218.4,218.28,7.49]
[1758638306087,7.17,218.4,218.28,71.5835]
[1758638306887,7.17,218.4,218.32,4.1194]
[1758638307086,4.1184,218.39,218.28,7.49]
[1758638307685,7.17,218.4,218.3,4.1197]
[1758638307883,4.1186,218.37,218.28,7.49]
[1758638308185,64.0714,218.36,218.22,11.31291962]
[1758638308388,7.57,218.37,218.22,7.49]
[1758638308783,7.57,218.37,218.26,4.1207]
[1758638309181,4.1193,218.34,218.23,4.1211]
[1758638309498,7.57,218.35,218.23,4.1211]
[1758638309679,7.57,218.35,218.22,7.49]
[1758638309884,11.69,218.3,218.22,7.49]
[1758638310491,11.69,218.3,218.2,4.1217]
[1758638310693,7.57,218.3,218.18,7.49]
[1758638311896,4.1207,218.27,218.18,11.612]
[1758638312193,7.57,218.3,218.18,11.612]
[1758638312393,4.1205,218.27,218.18,11.612]
[1758638312995,11.6899,218.3,218.18,11.612]
[1758638313196,7.57,218.3,218.18,7.49]
[1758638313396,64.0924,218.29,218.18,7.49]
[1758638314097,183.7324,218.29,218.18,7.49]
[1758638314300,119.64,218.29,218.18,11.6122]
[1758638314692,119.64,218.29,218.18,7.49]
[1758638315194,7.57,218.28,218.13,108.07899082]
[1758638315591,4.121,218.25,218.15,4.1226]
[1758638315898,7.57,218.24,218.09,7.49]
[1758638316687,7.57,218.24,218.12,4.1233]
[1758638316688,4.1218,218.2,218.12,4.1233]
[1758638316887,4.1218,218.2,218.09,7.49]
[1758638317489,4.1222,218.18,218.1,4.1237]
[1758638317690,113.35,218.2,218.09,7.49]
[1758638318295,4.1222,218.19,218.1,4.1235]
[1758638318493,113.35,218.2,218.1,4.1235]
[1758638318896,4.122,218.19,218.1,4.1235]
[1758638319100,113.35,218.2,218.09,7.49]
[1758638319700,7.57,218.2,218.09,7.49]
[1758638320900,7.57,218.2,218.12,4.1233]
[1758638321295,7.57,218.25,218.16,4.1224]
[1758638321493,7.57,218.25,218.14,71.6243]
[1758638321694,7.57,218.25,218.14,7.49]
[1758638322402,11.691,218.25,218.15,4.1226]
[1758638322702,7.57,218.25,218.15,4.1226]
[1758638322902,4.1212,218.24,218.17,4.1223]
[1758638323092,4.1212,218.24,218.14,7.49]
[1758638323297,7.57,218.25,218.15,64.1315]
[1758638323491,4.1201,218.29,218.2,4.1216]
[1758638324401,4.1201,218.29,218.14,11.6129]
[1758638324402,64.0917,218.29,218.14,11.6129]
[1758638324605,7.57,218.28,218.14,7.49]
[1758638324802,7.57,218.28,218.14,71.6235]
[1758638325004,11.6903,218.28,218.19,4.1218]
[1758638325201,7.57,218.28,218.18,7.49]
[1758638326098,7.57,218.28,218.2,4.1216]
[1758638326298,7.57,218.28,218.18,7.49]
[1758638326497,7.57,218.28,218.11,7.49]
[1758638326900,4.1207,218.26,218.15,7.49]
[1758638327101,7.57,218.28,218.15,7.49]
[1758638327506,7.57,218.28,218.14,64.1339]
[1758638327507,7.57,218.28,218.2,4.1216]
[1758638328097,7.57,218.28,218.18,11.6121]
[1758638328302,7.57,218.28,218.18,7.49]
[1758638329006,183.3262,218.31,218.14,7.49]
[1758638329007,7.57,218.26,218.14,7.49]
[1758638329903,4.1209,218.25,218.15,4.1226]
[1758638330096,4.1209,218.25,218.14,7.49]
[1758638330097,7.57,218.26,218.14,7.49]
[1758638330906,11.6908,218.26,218.14,7.49]
[1758638331105,7.57,218.26,218.14,7.49]
[1758638334020,11.6908,218.26,218.18,4.1221]
[1758638334722,11.6908,218.26,218.12,7.42]
[1758638334723,7.57,218.26,218.12,7.42]
[1758638335622,4.1216,218.21,218.12,7.42]
[1758638335818,7.71,218.23,218.12,7.42]
[1758638336121,7.71,218.23,218.13,4.123]
[1758638336821,7.71,218.23,218.12,7.42]
[1758638337420,7.71,218.23,218.13,4.123]
[1758638337814,4.1218,218.21,218.14,4.1228]
[1758638338219,7.71,218.23,218.12,7.42]
[1758638338620,7.71,218.23,218.15,2.4462791]
[1758638338820,7.71,218.23,218.17,4.1222]
[1758638339022,4.121,218.25,218.15,9.8662791]
[1758638339218,2.4462791,218.26,218.15,9.8662791]
[1758638339615,4.1212,218.24,218.18,4.1221]
[1758638340323,7.71,218.28,218.18,6.5683791]
[1758638340623,7.71,218.28,218.2,4.1217]
[1758638341324,64.0652,218.38,218.22,2.4462791]
[1758638341626,64.0652,218.38,218.25,2.4462791]
[1758638341627,129.2162791,218.35,218.25,2.4462791]
[1758638342529,7.71,218.35,218.24,7.42]
[1758638343423,64.0725,218.36,218.21,3.79819696]
[1758638343622,71.7838,218.35,218.2,7.42]
[1758638343822,7.71,218.35,218.24,4.121]
[1758638344022,7.71,218.35,218.24,64.1054]
[1758638344223,7.71,218.35,218.25,7.42]
[1758638344620,7.71,218.35,218.29,4.12]
[1758638344826,350.2787,218.37,218.29,4.12]
[1758638345024,350.2787,218.37,218.27,4.1203]
[1758638345231,350.2787,218.37,218.25,7.42]
[1758638346123,350.2787,218.37,218.3,4.1197]
[1758638346330,126.75,218.4,218.28,7.42]
[1758638346331,4.1183,218.39,218.28,7.42]
[1758638346831,119.04,218.4,218.32,64.0822]
[1758638347035,7.71,218.44,218.33,64.0784]
[1758638347232,7.71,218.44,218.34,7.42]
[1758638347432,7.71,218.41,218.29,3.79819696]
[1758638347626,7.71,218.41,218.27,3.79819696]
[1758638347828,11.828,218.41,218.27,3.79819696]
[1758638348132,105.228,218.41,218.28,7.42]
[1758638348533,7.71,218.41,218.28,11.5402]
[1758638349339,4.1186,218.37,218.29,4.1199]
[1758638349532,7.71,218.41,218.28,7.42]
[1758638349932,7.71,218.41,218.31,4.1196]
[1758638349933,4.1182,218.39,218.31,4.1196]
[1758638350132,7.71,218.41,218.32,7.42]
[1758638350339,7.71,218.48,218.34,64.0763]
[1758638350539,126.71,218.48,218.35,7.42]
[1758638351033,126.71,218.48,218.32,3.79819696]
[1758638351231,64.0632,218.39,218.29,7.42]
[1758638351438,7.71,218.38,218.24,11.21819696]
[1758638351738,7.71,218.38,218.25,3.79819696]
[1758638352639,7.71,218.38,218.24,11.21819696]
[1758638353531,4.1192,218.34,218.24,11.21819696]
[1758638354841,4.1192,218.34,218.25,4.1208]
[1758638355135,183.0629,218.39,218.22,0.70926242]
[1758638355136,7.32,218.31,218.22,0.70926242]
[1758638355935,78.68,218.31,218.19,7.23]
[1758638356939,4.1203,218.28,218.19,7.23]
[1758638357129,78.68,218.31,218.19,7.23]
[1758638357332,11.4398,218.31,218.19,7.23]
[1758638357736,7.32,218.31,218.19,7.23]
[1758638358240,7.32,218.31,218.2,64.1161]
[1758638358432,7.32,218.31,218.21,7.23]
[1758638358832,7.32,218.31,218.25,4.1208]
[1758638359435,41.8388,218.36,218.25,4.1208]
[1758638359636,7.32,218.35,218.25,4.1208]
[1758638359937,7.32,218.35,218.27,4.1204]
[1758638361839,7.32,218.35,218.18,11.02819696]
[1758638361840,7.32,218.32,218.18,11.02819696]
[1758638362035,7.32,218.31,218.18,7.23]
[1758638362731,7.32,218.31,218.21,7.23]
[1758638363139,7.32,218.31,218.23,4.1212]
[1758638364239,7.32,218.31,218.24,4.1209]
[1758638364440,7.32,218.31,218.21,7.23]
[1758638364644,7.63,218.36,218.21,7.23]
[1758638365543,7.63,218.31,218.23,4.1212]
[1758638365743,7.63,218.31,218.19,67.91869696]
[1758638365744,7.63,218.31,218.19,3.79819696]
[1758638366039,7.63,218.31,218.21,4.1214]
[1758638366040,11.7499,218.31,218.21,4.1214]
[1758638366645,11.7499,218.31,218.23,4.1212]
[1758638367145,11.7499,218.31,218.19,7.54]
[1758638367146,7.63,218.31,218.19,7.54]
[1758638367345,4.1188,218.36,218.27,7.54]
[1758638368436,7.63,218.37,218.27,7.54]
[1758638368836,7.63,218.37,218.23,3.79819696]
[1758638369037,11.7494,218.33,218.25,4.1207]
[1758638369237,7.63,218.33,218.23,7.54]
[1758638370349,7.63,218.33,218.23,11.6612]
[1758638370648,7.63,218.33,218.22,7.54]
[1758638372142,7.63,218.33,218.22,11.33819696]
[1758638372545,7.63,218.33,218.22,7.54]
[1758638372750,7.63,218.33,218.23,4.121]
[1758638373550,7.63,218.33,218.24,4.1209]